bitfinex/quotes_SOLUSD_20240712
["timestamp","ask_amount","ask_price","bid_price","bid_amount"]
[1720750170532,14.53,136.17,136.16,18.3599]
[1720750170710,14.53,136.17,136.15,7.3444]
[1720750170913,14.53,136.16,136.14,52.3451]
[1720750171234,14.53,136.15,136.11,7.3469]
[1720750171422,14.53,136.13,136.11,7.3469]
[1720750171604,14.53,136.12,136.11,7.3469]
[1720750172036,14.53,136.13,136.11,7.3469]
[1720750172351,14.53,136.13,136.12,7.3464]
[1720750172629,14.53,136.13,136.12,8.81133907]
[1720750172826,14.53,136.14,136.12,8.81133907]
[1720750173136,14.53,136.16,136.14,7.345]
[1720750173433,14.53,136.16,136.15,1.46461643]
[1720750173846,14.53,136.16,136.15,8.80941643]
[1720750174025,14.53,136.16,136.15,1.46461643]
[1720750174427,14.53,136.16,136.14,25.7081]
[1720750174648,14.53,136.15,136.14,25.7081]
[1720750174835,15.9063,136.2,136.15,7.3448]
[1720750175045,15.9063,136.2,136.16,63.3604]
[1720750175229,19.32790804,136.23,136.17,7.3437]
[1720750175543,14.53,136.18,136.17,25.7031]
[1720750176742,14.53,136.18,136.17,70.7031]
[1720750177943,58.12,136.22,136.18,7.3432]
[1720750178134,19.32790804,136.23,136.18,7.3432]
[1720750178442,14.53,136.19,136.18,7.3432]
[1720750178854,19.32790804,136.23,136.19,18.3562]
[1720750179039,14.53,136.2,136.19,25.6987]
[1720750180541,14.53,136.21,136.19,70.6988]
[1720750180728,14.53,136.2,136.19,25.6988]
[1720750181222,14.53,136.2,136.12,10.0]
[1720750181422,14.53,136.16,136.12,10.0]
[1720750181644,15.8097,136.23,136.14,10.0]
[1720750181842,20.0,136.22,136.18,7.3431]
[1720750182043,14.53,136.19,136.17,25.7028]
[1720750182237,14.53,136.18,136.17,25.7028]
[1720750183344,20.0,136.22,136.18,7.3427]
[1720750183549,14.53,136.19,136.18,7.3427]
[1720750183749,15.8097,136.23,136.19,7.3423]
[1720750183951,14.53,136.2,136.19,7.3423]
[1720750184443,14.53,136.2,136.17,18.3593]
[1720750184651,15.8097,136.23,136.17,18.3593]
[1720750184839,14.53,136.18,136.17,18.3593]
[1720750185235,2.98384105,136.23,136.17,69.4577]
[1720750185436,15.8097,136.26,136.19,10.0]
[1720750185634,15.0,136.34,136.23,25.6905]
[1720750185635,15.8097,136.3,136.23,25.6905]
[1720750185831,9.5464907,136.29,136.24,7.3399]
[1720750186044,14.53,136.26,136.24,7.3399]
[1720750186837,14.53,136.26,136.23,25.6908]
[1720750187044,14.53,136.25,136.23,25.6908]
[1720750188054,14.53,136.25,136.23,18.3505]
[1720750188537,23.1465,136.3,136.23,18.3505]
[1720750188737,49.03,136.29,136.23,18.3505]
[1720750189958,49.03,136.29,136.23,25.6909]
[1720750190146,49.03,136.29,136.24,7.3398]
[1720750190939,49.03,136.29,136.25,7.3392]
[1720750191138,15.8097,136.3,136.26,7.3389]
[1720750191344,29.03,136.31,136.26,7.3389]
[1720750191639,29.03,136.31,136.27,1.46129134]
[1720750191957,45.4378,136.33,136.27,8.79939134]
[1720750192154,45.4378,136.33,136.27,64.80689134]
[1720750192373,45.4378,136.33,136.28,7.3377]
[1720750192565,29.03,136.36,136.29,19.8042195]
[1720750192862,36.3636,136.36,136.3,1.46121228]
[1720750193254,29.03,136.37,136.3,1.46121228]
[1720750193467,15.8102,136.4,136.3,17.66321228]
[1720750193765,29.03,136.38,136.32,7.3356]
[1720750194657,36.3626,136.38,136.31,18.3393]
[1720750194860,20.0,136.37,136.31,18.3393]
[1720750195738,20.0,136.37,136.31,25.6753]
[1720750195963,20.0,136.37,136.32,52.3355]
[1720750196471,20.0,136.37,136.32,45.0]
[1720750196662,20.0,136.37,136.31,25.6753]
[1720750197154,20.0,136.37,136.32,7.3355]
[1720750198180,20.0,136.37,136.33,1.46582536]
[1720750199173,44.8402,136.4,136.35,7.3338]
[1720750199375,29.03,136.4,136.36,8.79890286]
[1720750199543,15.386,136.44,136.36,1.46550286]
[1720750199741,29.03,136.42,136.36,1.46550286]
[1720750199973,29.03,136.4,136.31,25.2494]
[1720750200181,29.03,136.4,136.35,7.3337]
[1720750200371,15.386,136.44,136.34,18.3362]
[1720750200562,7.3314,136.4,136.33,7.3351]
[1720750200887,36.362,136.39,136.32,52.3355]
[1720750201054,29.03,136.39,136.32,7.3355]
[1720750201258,29.03,136.39,136.33,7.335]
[1720750201443,29.03,136.39,136.34,7.3345]
[1720750201755,29.03,136.39,136.34,7.3341]
[1720750202359,29.03,136.39,136.33,25.6719]
[1720750203268,29.03,136.39,136.32,7.3356]
[1720750203476,29.03,136.39,136.33,7.335]
[1720750204176,29.03,136.39,136.32,7.3356]
[1720750204371,29.03,136.39,136.31,15.2494]
[1720750204372,36.363,136.37,136.3,6.202]
[1720750204667,29.03,136.37,136.31,7.3361]
[1720750204873,29.03,136.37,136.32,7.3353]
[1720750205257,29.03,136.37,136.31,25.6761]
[1720750205443,29.03,136.37,136.31,18.34]
[1720750205960,20.0,136.36,136.29,7.3371]
[1720750206470,29.03,136.35,136.3,7.3366]
[1720750206968,29.03,136.35,136.31,7.3361]
[1720750207181,15.1915,136.38,136.32,18.3384]
[1720750207353,15.1915,136.38,136.34,7.3342]
[1720750207555,15.1915,136.38,136.35,1.46635693]
[1720750207755,44.2215,136.38,136.33,1.46675125]
[1720750208557,6.1565,136.41,136.35,7.334]
[1720750208558,29.03,136.4,136.35,7.334]
[1720750208758,29.03,136.4,136.36,1.46640979]
[1720750209169,29.03,136.4,136.36,8.79980979]
[1720750209682,29.03,136.4,136.38,7.3323]
[1720750209854,15.9698,136.44,136.39,45.0]
[1720750210049,15.9698,136.44,136.39,25.6614]
[1720750210255,15.9698,136.44,136.34,25.7236]
[1720750210256,15.9698,136.44,136.36,18.3328]
[1720750210473,15.9698,136.44,136.36,25.6658]
[1720750210474,29.03,136.43,136.36,25.6658]
[1720750210663,29.03,136.43,136.37,7.3328]
[1720750211386,36.3598,136.43,136.37,1.46635447]
[1720750211674,36.3597,136.43,136.37,1.46635447]
[1720750211850,29.03,136.43,136.37,7.3328]
[1720750212250,29.03,136.43,136.38,7.3322]
[1720750212471,29.03,136.43,136.36,18.3328]
[1720750212655,29.03,136.43,136.37,7.3325]
[1720750213062,29.03,136.43,136.36,25.6661]
[1720750213277,29.03,136.43,136.36,18.3328]
[1720750213451,29.03,136.43,136.37,7.3328]
[1720750213653,29.03,136.43,136.38,7.3322]
[1720750214153,29.03,136.43,136.39,7.3318]
[1720750214674,14.48,136.4,136.36,7.333]
[1720750214852,15.9698,136.44,136.34,25.7236]
[1720750215053,57.92,136.43,136.38,7.3323]
[1720750215255,14.48,136.39,136.37,7.3327]
[1720750215454,57.92,136.43,136.38,7.3324]
[1720750215778,14.48,136.39,136.38,7.3324]
[1720750216572,14.48,136.4,136.39,7.3319]
[1720750216766,14.48,136.4,136.39,25.6612]
[1720750217276,15.9698,136.44,136.4,7.3308]
[1720750217469,14.48,136.41,136.4,7.3308]
[1720750218871,14.48,136.41,136.39,25.661]
[1720750219064,14.48,136.4,136.34,25.7236]
[1720750219389,57.92,136.43,136.41,7.3308]
[1720750219588,14.48,136.42,136.34,40.2036]
[1720750219772,57.92,136.43,136.38,7.3323]
[1720750220071,16.3605,136.47,136.34,35.7236]
[1720750220256,14.48,136.39,136.38,7.3324]
[1720750220454,14.48,136.39,136.38,52.3324]
[1720750220875,23.6881,136.47,136.38,45.0]
[1720750221169,14.48,136.4,136.39,7.3319]
[1720750221380,14.48,136.4,136.38,25.6634]
[1720750221562,14.48,136.39,136.35,18.3343]
[1720750221769,14.48,136.37,136.36,7.3333]
[1720750221952,14.48,136.37,136.35,18.3343]
[1720750222275,14.48,136.37,136.36,7.3335]
[1720750222984,14.48,136.37,136.35,18.3343]
[1720750223279,14.48,136.36,136.35,18.3343]
[1720750223859,14.48,136.36,136.33,7.3349]
[1720750224061,14.48,136.34,136.33,7.3349]
[1720750224270,14.48,136.34,136.32,25.6741]
[1720750224760,14.48,136.33,136.32,18.3385]
[1720750224963,14.48,136.33,136.32,25.6741]
[1720750225278,14.48,136.34,136.32,25.6741]
[1720750226388,14.48,136.34,136.33,7.3351]
[1720750227554,14.48,136.34,136.32,25.6741]
[1720750227754,14.48,136.34,136.33,7.3351]
[1720750228473,14.48,136.35,136.33,7.3351]
[1720750228890,14.48,136.36,136.35,7.334]
[1720750229256,16.3605,136.41,136.31,10.0]
[1720750229460,14.48,136.38,136.32,45.34]
[1720750229655,16.3605,136.41,136.36,18.333]
[1720750229863,14.48,136.37,136.34,7.3344]
[1720750230059,14.48,136.36,136.32,45.17]
[1720750230351,14.48,136.35,136.33,18.337]
[1720750230549,14.48,136.34,136.32,7.3354]
[1720750230749,14.48,136.35,136.33,7.3351]
[1720750231069,14.48,136.34,136.31,7.3357]
[1720750231394,14.48,136.33,136.3,7.3366]
[1720750231685,14.48,136.33,136.31,7.3361]
[1720750231863,7.3324,136.38,136.31,7.3361]
[1720750232055,14.48,136.33,136.31,7.3361]
[1720750232987,14.48,136.34,136.31,7.3361]
[1720750233563,14.48,136.33,136.31,7.3361]
[1720750235663,14.48,136.33,136.29,25.6795]
[1720750235868,14.48,136.33,136.3,45.0]
[1720750236174,14.48,136.33,136.3,52.3364]
[1720750237494,14.48,136.33,136.31,7.3361]
[1720750237789,14.48,136.36,136.3,52.3365]
[1720750237995,14.48,136.32,136.3,52.3365]
[1720750238793,14.48,136.33,136.3,52.3365]
[1720750239093,0.17,136.39,136.31,18.3398]
[1720750239288,14.48,136.36,136.34,7.334]
[1720750239965,14.48,136.37,136.35,7.334]
[1720750240491,14.48,136.36,136.33,18.3367]
[1720750240673,6.6494,136.42,136.31,7.3361]
[1720750240674,14.48,136.35,136.31,7.3361]
[1720750240880,14.48,136.34,136.3,73.3407]
[1720750241285,14.48,136.34,136.31,0.34]
[1720750241593,14.48,136.34,136.32,7.3352]
[1720750241763,14.48,136.34,136.33,8.80103888]
[1720750241963,14.48,136.34,136.33,7.3351]
[1720750242467,14.48,136.35,136.33,7.3351]
[1720750242672,14.48,136.35,136.32,18.3389]
[1720750242673,23.6913,136.41,136.34,8.80021635]
[1720750242967,14.48,136.36,136.34,8.80021635]
[1720750243166,14.48,136.36,136.34,1.46561635]
[1720750243389,14.48,136.35,136.34,1.46561635]
[1720750243780,14.48,136.35,136.33,1.46564639]
[1720750244389,16.0339,136.35,136.29,18.3423]
[1720750244691,14.48,136.31,136.29,18.3423]
[1720750245372,14.48,136.31,136.29,25.6792]
[1720750246394,14.48,136.31,136.3,45.0]
[1720750246692,45.0339,136.35,136.3,52.3366]
[1720750247801,16.0339,136.35,136.3,52.3366]
[1720750248892,16.0339,136.35,136.3,45.0]
[1720750249598,16.0339,136.35,136.3,52.3367]
[1720750250811,23.368,136.35,136.3,45.0]
[1720750251099,7.3347,136.34,136.27,7.3383]
[1720750251298,52.3681,136.35,136.28,7.3378]
[1720750251501,52.3681,136.35,136.27,7.3381]
[1720750252181,16.88028854,136.34,136.27,7.3381]
[1720750252391,29.0,136.33,136.26,25.6849]
[1720750252615,36.3352,136.33,136.26,25.6849]
[1720750253702,29.0,136.33,136.26,25.6849]
[1720750254006,29.0,136.33,136.27,7.3379]
[1720750254879,29.0,136.33,136.28,7.3376]
[1720750255283,29.0,136.33,136.27,7.3382]
[1720750256993,29.0,136.33,136.28,7.3377]
[1720750257680,29.0,136.33,136.26,18.3461]
[1720750257681,45.0339,136.35,136.29,7.3372]
[1720750258001,20.0,136.34,136.29,7.3372]
[1720750258380,20.0,136.34,136.28,25.6817]
[1720750260676,7.3353,136.33,136.25,28.3482]
[1720750260891,7.3353,136.33,136.26,45.17]
[1720750261209,7.3353,136.33,136.26,45.0]
[1720750261413,7.3353,136.33,136.26,52.3385]
[1720750261777,27.3347,136.34,136.27,7.3382]
[1720750262508,20.0,136.34,136.27,7.3382]
[1720750262687,27.3346,136.34,136.27,7.3382]
[1720750263507,7.3352,136.33,136.26,52.3388]
[1720750263682,27.3347,136.34,136.26,52.3388]
[1720750264190,27.3347,136.34,136.26,45.0]
[1720750264394,27.3347,136.34,136.27,7.3383]
[1720750265711,27.3347,136.34,136.27,25.6837]
[1720750266796,20.0,136.34,136.28,7.3377]
[1720750267313,45.0339,136.35,136.3,7.3367]
[1720750267493,45.0339,136.35,136.29,7.3372]
[1720750267989,45.0339,136.35,136.3,7.3365]
[1720750268593,14.5,136.31,136.3,7.3365]
[1720750268794,16.0339,136.35,136.31,7.3358]
[1720750269306,14.5,136.33,136.3,7.3366]
[1720750269491,14.5,136.32,136.29,25.6801]
[1720750269685,14.5,136.32,136.3,45.0]
[1720750270207,16.0339,136.35,136.28,7.5076]
[1720750270411,14.5,136.3,136.28,7.3376]
[1720750271591,14.5,136.3,136.29,45.0]
[1720750272420,14.5,136.3,136.26,18.3462]
[1720750272602,14.5,136.29,136.27,52.3379]
[1720750274807,14.5,136.29,136.28,7.3378]
[1720750275015,14.5,136.3,136.28,7.3378]
[1720750275391,14.5,136.3,136.29,7.3372]
[1720750278104,16.0339,136.35,136.3,7.3367]
[1720750278105,14.5,136.32,136.3,7.3367]
[1720750278308,16.0339,136.35,136.3,7.3367]
[1720750278514,14.5,136.33,136.3,7.3367]
[1720750279411,14.5,136.33,136.29,45.0]
[1720750279593,14.5,136.33,136.31,7.3361]
[1720750279794,14.5,136.32,136.3,18.3416]
[1720750280012,14.5,136.31,136.3,18.3416]
[1720750280324,14.5,136.31,136.28,45.0]
[1720750281599,14.5,136.3,136.28,52.3377]
[1720750282465,14.5,136.31,136.3,7.3364]
[1720750283301,14.5,136.32,136.3,7.3364]
[1720750283511,16.0339,136.35,136.31,7.3362]
[1720750283690,14.5,136.33,136.31,7.3362]
[1720750283896,14.5,136.33,136.32,45.0]
[1720750284519,22.8237,136.39,136.32,45.34]
[1720750284822,14.5,136.37,136.34,7.3342]
[1720750285319,6.4141,136.42,136.35,18.334]
[1720750285517,14.5,136.39,136.37,7.3326]
[1720750285733,14.5,136.39,136.38,1.46600072]
[1720750286024,16.6254,136.43,136.38,1.46600072]
[1720750286196,14.5,136.4,136.38,53.79790072]
[1720750286619,16.6254,136.43,136.38,53.79790072]
[1720750287596,52.1272,136.47,136.39,7.3317]
[1720750287801,16.8690185,136.46,136.4,1.46586419]
[1720750288113,9.54119153,136.45,136.38,45.0]
[1720750288410,7.3287,136.45,136.38,52.3322]
[1720750288615,7.3287,136.45,136.39,0.62269099]
[1720750289008,9.54133004,136.44,136.39,0.62269099]
[1720750289221,28.96,136.45,136.34,18.3359]
[1720750289427,7.3303,136.42,136.35,0.17]
[1720750289741,7.3313,136.4,136.32,29.1167]
[1720750289900,28.96,136.39,136.29,6.198]
[1720750290105,36.2919,136.39,136.31,7.3359]
[1720750290921,20.0,136.38,136.31,7.3359]
[1720750291301,27.3324,136.38,136.32,45.0]
[1720750291504,36.292,136.39,136.32,45.0]
[1720750291705,20.0,136.38,136.32,45.0]
[1720750292508,48.96,136.38,136.32,45.0]
[1720750293128,48.96,136.38,136.3,25.6776]
[1720750293433,28.96,136.36,136.3,18.341]
[1720750293629,15.085,136.35,136.26,10.0]
[1720750293841,7.3348,136.34,136.27,18.345]
[1720750294017,36.2948,136.34,136.27,18.345]
[1720750294345,28.96,136.34,136.27,25.6832]
[1720750294721,28.96,136.34,136.28,7.3377]
[1720750295242,28.96,136.34,136.29,18.3422]
[1720750295544,28.96,136.34,136.27,7.3379]
[1720750295751,28.96,136.34,136.28,7.3377]
[1720750296038,28.96,136.34,136.27,0.17]
[1720750296244,28.96,136.34,136.29,7.3372]
[1720750296620,21.1225,136.35,136.29,7.3372]
[1720750297015,21.1225,136.35,136.3,7.3366]
[1720750298042,21.1225,136.35,136.29,7.3372]
[1720750298344,21.1225,136.35,136.28,25.6815]
[1720750300234,28.4568,136.35,136.28,18.3438]
[1720750301549,28.4568,136.35,136.28,25.6815]
[1720750302341,21.1225,136.35,136.29,7.3371]
[1720750303942,15.085,136.35,136.31,7.3357]
[1720750304716,51.4056,136.39,136.32,18.3387]
[1720750304918,51.4056,136.39,136.33,45.0]
[1720750305539,22.4456,136.39,136.34,7.3344]
[1720750306238,16.2365,136.39,136.33,52.3349]
[1720750306445,16.2365,136.39,136.35,1.20255835]
[1720750306944,16.2365,136.39,136.34,1.20255835]
[1720750307155,23.5684,136.39,136.33,45.0]
[1720750307339,7.3325,136.38,136.33,45.0]
[1720750307829,23.5685,136.39,136.32,45.0]
[1720750308248,23.5685,136.39,136.32,52.3355]
[1720750308432,16.2365,136.39,136.32,52.3355]
[1720750308633,14.49,136.35,136.32,52.3355]
[1720750310543,14.49,136.35,136.33,7.335]
[1720750311725,14.49,136.36,136.33,7.335]
[1720750312041,16.2365,136.39,136.33,7.335]
[1720750312227,14.49,136.36,136.32,52.3354]
[1720750312428,14.49,136.35,136.32,52.3354]
[1720750312856,14.49,136.34,136.32,45.0]
[1720750313023,14.49,136.34,136.31,18.3402]
[1720750313227,16.2365,136.39,136.32,7.3355]
[1720750313424,16.2365,136.39,136.33,45.0]
[1720750313425,14.49,136.35,136.33,45.0]
[1720750313649,14.49,136.35,136.32,7.3355]
[1720750313846,14.49,136.35,136.31,25.6762]
[1720750314058,14.49,136.35,136.32,45.0]
[1720750314353,14.49,136.34,136.32,45.0]
[1720750314755,14.49,136.33,136.3,7.5066]
[1720750314950,14.49,136.33,136.31,45.0]
[1720750315250,14.49,136.33,136.31,52.3361]
[1720750316153,14.49,136.33,136.3,7.3367]
[1720750316350,23.5684,136.39,136.28,10.0]
[1720750316546,23.5684,136.39,136.3,14.49]
[1720750316547,14.49,136.35,136.3,14.49]
[1720750316746,14.49,136.35,136.32,7.3356]
[1720750317131,14.49,136.34,136.31,7.336]
[1720750318948,14.49,136.34,136.32,7.3356]
[1720750319541,14.49,136.35,136.32,7.3356]
[1720750319738,14.49,136.35,136.33,7.3349]
[1720750319958,14.49,136.35,136.34,7.3346]
[1720750320159,14.49,136.36,136.34,7.86984624]
[1720750320359,14.49,136.36,136.34,0.53524624]
[1720750320862,14.49,136.37,136.34,7.86974624]
[1720750321060,14.49,136.37,136.35,0.53520697]
[1720750321635,14.49,136.37,136.35,0.53520696]
[1720750321962,16.2365,136.39,136.33,7.87010729]
[1720750321963,14.49,136.36,136.33,7.87010729]
[1720750322132,16.2365,136.39,136.33,0.53520729]
[1720750322133,14.49,136.37,136.33,0.53520729]
[1720750322330,16.2365,136.39,136.31,14.49]
[1720750322557,14.49,136.36,136.33,7.3348]
[1720750322760,14.49,136.37,136.33,7.3351]
[1720750323256,14.49,136.36,136.33,25.6726]
[1720750323561,14.49,136.36,136.32,52.3355]
[1720750324460,14.49,136.35,136.32,52.3355]
[1720750324854,14.49,136.35,136.33,7.335]
[1720750325042,14.49,136.36,136.33,7.335]
[1720750326955,23.5684,136.39,136.32,70.6741]
[1720750327162,14.49,136.35,136.32,70.6741]
[1720750327538,14.49,136.35,136.32,18.3387]
[1720750327744,14.49,136.34,136.32,18.3387]
[1720750327949,14.49,136.34,136.32,25.6742]
[1720750328152,14.49,136.35,136.32,18.3387]
[1720750328654,14.49,136.36,136.32,18.3387]
[1720750329055,14.49,136.35,136.32,18.3387]
[1720750329440,14.49,136.34,136.32,18.3387]
[1720750330376,14.49,136.33,136.29,25.6789]
[1720750330549,14.49,136.32,136.3,7.3367]
[1720750331449,57.96,136.36,136.3,7.3367]
[1720750331667,14.49,136.33,136.3,7.3367]
[1720750333156,14.49,136.32,136.29,25.6792]
[1720750333354,15.0201,136.34,136.29,25.6792]
[1720750333668,14.49,136.31,136.24,8.89272175]
[1720750333971,14.49,136.3,136.25,14.49]
[1720750334266,14.49,136.29,136.27,7.3382]
[1720750334473,14.49,136.29,136.24,20.5319]
[1720750334474,14.49,136.29,136.26,25.6851]
[1720750334645,14.49,136.29,136.26,18.3463]
[1720750335575,14.49,136.28,136.26,18.3463]
[1720750336663,14.49,136.28,136.26,25.6851]
[1720750336969,14.49,136.28,136.27,7.3383]
[1720750337150,15.0201,136.34,136.28,7.3378]
[1720750337351,14.49,136.3,136.28,7.3378]
[1720750337941,14.49,136.32,136.31,7.3358]
[1720750338143,14.49,136.32,136.3,25.6778]
[1720750340349,16.5509,136.38,136.31,0.95893675]
[1720750340544,14.49,136.34,136.32,25.6741]
[1720750341069,14.49,136.34,136.32,18.3385]
[1720750341845,15.8096,136.39,136.33,0.95879607]
[1720750342046,15.8096,136.39,136.34,7.3344]
[1720750342573,14.49,136.36,136.33,8.79809299]
[1720750342775,14.49,136.36,136.33,7.335]
[1720750343081,14.49,136.36,136.33,8.79798587]
[1720750343261,14.49,136.36,136.33,7.335]
[1720750343657,14.49,136.36,136.33,8.79787859]
[1720750345071,16.2744,136.43,136.34,18.3357]
[1720750345375,14.49,136.38,136.35,1.46266401]
[1720750345756,14.49,136.38,136.35,8.79646401]
[1720750346470,14.49,136.37,136.35,7.3338]
[1720750349574,14.49,136.37,136.36,7.3335]
[1720750349963,14.49,136.38,136.36,7.3335]
[1720750350362,14.49,136.38,136.37,7.3329]
[1720750351076,16.2744,136.43,136.36,7.3334]
[1720750351374,14.49,136.38,136.36,7.3334]
[1720750353078,14.49,136.37,136.36,7.3334]
[1720750353581,14.49,136.38,136.36,7.3334]
[1720750359162,14.49,136.38,136.35,7.334]
[1720750359453,14.49,136.37,136.35,7.334]
[1720750359879,14.49,136.38,136.35,7.334]
[1720750360074,81.5645,136.43,136.36,7.3331]
[1720750360287,14.49,136.38,136.36,7.3331]
[1720750361059,14.49,136.39,136.36,7.3331]
[1720750361266,14.49,136.38,136.36,7.3331]
[1720750363672,74.2344,136.43,136.34,14.49]
[1720750363875,14.49,136.4,136.35,45.0]
[1720750364390,14.49,136.39,136.38,7.3322]
[1720750364581,14.49,136.4,136.38,7.3322]
[1720750364899,14.49,136.41,136.38,18.3307]
[1720750366273,14.49,136.41,136.4,7.331]
[1720750366690,15.0764,136.46,136.41,7.3306]
[1720750366870,14.49,136.43,136.41,7.3306]
[1720750367070,14.49,136.44,136.41,7.3306]
[1720750367381,14.49,136.43,136.4,7.3312]
[1720750367782,14.49,136.43,136.4,25.6591]
[1720750369289,14.49,136.42,136.4,25.6591]
[1720750371275,14.49,136.41,136.38,7.332]
[1720750371485,14.49,136.4,136.39,7.3318]
[1720750372287,14.49,136.4,136.38,7.3322]
[1720750375898,14.49,136.41,136.39,7.3319]
[1720750376101,14.49,136.42,136.39,7.3319]
[1720750377781,14.49,136.4,136.37,25.6644]
[1720750378315,14.49,136.43,136.36,7.3334]
[1720750378479,14.49,136.38,136.36,7.3334]
[1720750380198,14.49,136.38,136.35,7.334]
[1720750381497,14.49,136.37,136.35,7.334]
[1720750381798,14.49,136.37,136.36,7.3335]
[1720750382381,14.49,136.38,136.37,7.3329]
[1720750382783,14.49,136.39,136.37,7.3329]
[1720750384203,14.49,136.38,136.36,25.6669]
[1720750384886,14.49,136.38,136.37,7.3329]
[1720750385086,14.49,136.39,136.37,7.3329]
[1720750386377,14.49,136.38,136.37,7.3329]
[1720750386591,14.49,136.38,136.36,25.6669]
[1720750388495,14.49,136.37,136.36,25.6669]
[1720750388689,14.49,136.37,136.3,22.7898]
[1720750388899,14.49,136.35,136.32,7.3356]
[1720750389080,14.49,136.34,136.32,18.3387]
[1720750389479,14.49,136.33,136.32,18.3387]
[1720750389681,14.49,136.33,136.32,25.6743]
[1720750391197,14.49,136.34,136.33,7.3346]
[1720750391701,14.49,136.34,136.32,25.6742]
[1720750393501,14.49,136.35,136.33,7.335]
[1720750393898,14.49,136.36,136.33,7.335]
[1720750394601,14.49,136.36,136.32,25.6741]
[1720750394805,10.38269657,136.4,136.32,25.6741]
[1720750394806,14.49,136.35,136.32,25.6741]
[1720750395018,14.49,136.34,136.32,25.6741]
[1720750396897,14.49,136.35,136.33,7.3351]
[1720750397297,14.49,136.34,136.3,6.6339]
[1720750397696,14.49,136.33,136.3,6.6339]
[1720750397979,14.49,136.33,136.3,13.9705]
[1720750399797,14.49,136.33,136.3,7.3366]
[1720750400498,14.49,136.33,136.31,7.3362]
[1720750401506,14.49,136.33,136.3,7.3366]
[1720750403715,14.49,136.32,136.3,7.3366]
[1720750404588,14.49,136.32,136.29,25.6794]
[1720750404788,14.49,136.31,136.29,18.3422]
[1720750404989,14.49,136.3,136.27,7.3381]
[1720750405199,14.49,136.29,136.27,7.3381]
[1720750405610,14.49,136.29,136.26,25.6849]
[1720750405787,14.49,136.29,136.27,7.3383]
[1720750406597,14.49,136.28,136.26,18.3462]
[1720750407922,7.65962679,136.31,136.3,7.3367]
[1720750408218,14.49,136.31,136.29,7.3371]
[1720750408523,14.49,136.3,136.29,7.3371]
[1720750409314,7.6582992,136.34,136.3,7.3363]
[1720750409518,14.49,136.32,136.3,7.3363]
[1720750409900,14.49,136.32,136.29,7.3371]
[1720750410919,14.49,136.31,136.29,7.3371]
[1720750411417,14.49,136.31,136.28,25.6816]
[1720750414815,14.49,136.32,136.29,7.3372]
[1720750415500,14.49,136.32,136.28,25.6816]
[1720750415722,14.49,136.31,136.28,25.6816]
[1720750416724,14.49,136.31,136.29,7.3372]